[Event "Titled Tuesday Blitz May 16 Late 2023"]
[White "Papayan, Oleg"]
[Black "lluiss"]
[WhiteFideId "4193911"]
[WhiteElo "2171"]
[BlackElo "2280"]
[Result "1-0"]
[Round "03"]
[TimeControl "180+2"]
[Date "2023.05.16"]
[WhiteClock "0:00:16"]
[BlackClock "0:00:00"]

1. e4 {[%clk 0:03:00]}  c5 {[%clk 0:02:57]} 2. d4 {[%clk 0:03:00]}  cxd4 {[%clk 0:02:56]} 3. Qxd4 {[%clk 0:03:01]}  Nc6 {[%clk 0:02:55]} 4. Qd3 {[%clk 0:03:02]}  Nf6 {[%clk 0:02:53]} 5. Nc3 {[%clk 0:03:02]}  g6 {[%clk 0:02:51]} 6. Nf3 {[%clk 0:03:02]}  d6 {[%clk 0:02:50]} 7. Be2 {[%clk 0:03:02]}  Bg7 {[%clk 0:02:50]} 8. O-O {[%clk 0:03:03]}  O-O {[%clk 0:02:50]} 9. Nd5 {[%clk 0:03:03]}  Bg4 {[%clk 0:02:39]} 10. c3 {[%clk 0:03:02]}  Rc8 {[%clk 0:02:30]} 11. Bg5 {[%clk 0:02:59]}  Nd7 {[%clk 0:02:10]} 12. Rad1 {[%clk 0:02:32]}  Re8 {[%clk 0:02:08]} 13. a4 {[%clk 0:02:30]}  h6 {[%clk 0:01:54]} 14. Bh4 {[%clk 0:02:30]}  Nce5 {[%clk 0:01:35]} 15. Qe3 {[%clk 0:02:04]}  Bxf3 {[%clk 0:01:05]} 16. Bxf3 {[%clk 0:02:04]}  Nxf3+ {[%clk 0:01:05]} 17. Qxf3 {[%clk 0:01:59]}  Ne5 {[%clk 0:01:05]} 18. Qe3 {[%clk 0:01:40]}  b6 {[%clk 0:01:04]} 19. Qe2 {[%clk 0:01:28]}  Qd7 {[%clk 0:00:42]} 20. f4 {[%clk 0:01:17]}  Nc6 {[%clk 0:00:33]} 21. e5 {[%clk 0:01:01]}  Qe6 {[%clk 0:00:20]} 22. g4 {[%clk 0:00:42]}  g5 {[%clk 0:00:14]} 23. fxg5 {[%clk 0:00:38]}  hxg5 {[%clk 0:00:12]} 24. Bxg5 {[%clk 0:00:35]}  Nxe5 {[%clk 0:00:12]} 25. h3 {[%clk 0:00:28]}  Rc5 {[%clk 0:00:11]} 26. Nf4 {[%clk 0:00:26]}  Qd7 {[%clk 0:00:10]} 27. Nh5 {[%clk 0:00:23]}  Qc6 {[%clk 0:00:04]} 28. Be3 {[%clk 0:00:18]}  Rc4 {[%clk 0:00:00]} 29. Bd4 {[%clk 0:00:16]} 1-0


[Site "https://www.chess.com"]

[Event "Titled Tuesday Blitz May 16 Late 2023"]
[White "Wagner, Dennis"]
[Black "Ismayilova, Khanim"]
[WhiteFideId "24650684"]
[BlackFideId "13429019"]
[WhiteElo "2478"]
[BlackElo "1633"]
[Result "1-0"]
[Round "03"]
[TimeControl "180+2"]
[Date "2023.05.16"]
[WhiteClock "0:01:19"]
[BlackClock "0:00:01"]

1. e4 {[%clk 0:03:00]}  c5 {[%clk 0:02:59]} 2. Nf3 {[%clk 0:03:01]}  Nc6 {[%clk 0:02:59]} 3. Bb5 {[%clk 0:03:01]}  g6 {[%clk 0:02:59]} 4. Bxc6 {[%clk 0:03:00]}  dxc6 {[%clk 0:02:58]} 5. d3 {[%clk 0:02:59]}  Bg7 {[%clk 0:02:59]} 6. h3 {[%clk 0:02:58]}  e5 {[%clk 0:02:56]} 7. a4 {[%clk 0:02:56]}  Ne7 {[%clk 0:02:47]} 8. a5 {[%clk 0:02:54]}  O-O {[%clk 0:02:45]} 9. Be3 {[%clk 0:02:54]}  Qd6 {[%clk 0:02:39]} 10. Nbd2 {[%clk 0:02:53]}  Be6 {[%clk 0:02:30]} 11. Ng5 {[%clk 0:02:38]}  b6 {[%clk 0:02:21]} 12. Nxe6 {[%clk 0:02:33]}  Qxe6 {[%clk 0:02:19]} 13. O-O {[%clk 0:02:32]}  f5 {[%clk 0:02:17]} 14. f3 {[%clk 0:02:27]}  f4 {[%clk 0:02:04]} 15. Bf2 {[%clk 0:02:25]}  g5 {[%clk 0:01:45]} 16. Qb1 {[%clk 0:02:24]}  Ng6 {[%clk 0:01:38]} 17. Qa2 {[%clk 0:02:22]}  Qxa2 {[%clk 0:01:36]} 18. Rxa2 {[%clk 0:02:23]}  Rfd8 {[%clk 0:01:30]} 19. Rfa1 {[%clk 0:02:22]}  Rab8 {[%clk 0:01:22]} 20. axb6 {[%clk 0:02:22]}  axb6 {[%clk 0:01:21]} 21. Ra6 {[%clk 0:02:22]}  Rb7 {[%clk 0:01:19]} 22. Nc4 {[%clk 0:02:20]}  Rdb8 {[%clk 0:00:44]} 23. Ra7 {[%clk 0:02:18]}  Rxa7 {[%clk 0:00:33]} 24. Rxa7 {[%clk 0:02:18]}  b5 {[%clk 0:00:32]} 25. Na5 {[%clk 0:02:16]}  Rb6 {[%clk 0:00:31]} 26. Bxc5 {[%clk 0:02:13]}  Rb8 {[%clk 0:00:31]} 27. b4 {[%clk 0:02:08]}  Rc8 {[%clk 0:00:29]} 28. Ra6 {[%clk 0:02:06]}  Bf8 {[%clk 0:00:27]} 29. Rxc6 {[%clk 0:01:59]}  Rxc6 {[%clk 0:00:20]} 30. Nxc6 {[%clk 0:02:00]}  Bxc5+ {[%clk 0:00:18]} 31. bxc5 {[%clk 0:02:01]}  Kf7 {[%clk 0:00:19]} 32. c3 {[%clk 0:01:53]}  Ke6 {[%clk 0:00:18]} 33. Kf2 {[%clk 0:01:43]}  Kd7 {[%clk 0:00:18]} 34. Nb4 {[%clk 0:01:38]}  Ne7 {[%clk 0:00:18]} 35. d4 {[%clk 0:01:36]}  exd4 {[%clk 0:00:15]} 36. cxd4 {[%clk 0:01:37]}  Nc8 {[%clk 0:00:15]} 37. d5 {[%clk 0:01:37]}  Na7 {[%clk 0:00:14]} 38. e5 {[%clk 0:01:36]}  Nc8 {[%clk 0:00:13]} 39. e6+ {[%clk 0:01:35]}  Ke7 {[%clk 0:00:13]} 40. Ke2 {[%clk 0:01:34]}  Na7 {[%clk 0:00:12]} 41. Kd3 {[%clk 0:01:34]}  h5 {[%clk 0:00:11]} 42. Ke4 {[%clk 0:01:35]}  Nc8 {[%clk 0:00:09]} 43. Ke5 {[%clk 0:01:35]}  Na7 {[%clk 0:00:06]} 44. d6+ {[%clk 0:01:36]}  Ke8 {[%clk 0:00:06]} 45. c6 {[%clk 0:01:36]}  Nc8 {[%clk 0:00:04]} 46. c7 {[%clk 0:01:33]}  Nb6 {[%clk 0:00:04]} 47. Nd5 {[%clk 0:01:29]}  Nc4+ {[%clk 0:00:04]} 48. Kd4 {[%clk 0:01:22]}  Nxd6 {[%clk 0:00:04]} 49. Kc5 {[%clk 0:01:23]}  Nc8 {[%clk 0:00:04]} 50. Nb6 {[%clk 0:01:22]}  Ne7 {[%clk 0:00:03]} 51. Kxb5 {[%clk 0:01:21]}  Kf8 {[%clk 0:00:01]} 52. Kc5 {[%clk 0:01:20]}  Kg7 {[%clk 0:00:02]} 53. Kd6 {[%clk 0:01:20]}  Kf6 {[%clk 0:00:02]} 54. Nd7+ {[%clk 0:01:20]}  Kg7 {[%clk 0:00:01]} 55. Kxe7 {[%clk 0:01:20]}  Kg6 {[%clk 0:00:01]} 56. c8=Q {[%clk 0:01:20]}  g4 {[%clk 0:00:02]} 57. Qg8+ {[%clk 0:01:20]}  Kh6 {[%clk 0:00:01]} 58. Kf6 {[%clk 0:01:18]}  g3 {[%clk 0:00:01]} 59. Qg6# {[%clk 0:01:19]} 1-0


[Site "https://www.chess.com"]

[Event "Titled Tuesday Blitz May 16 Late 2023"]
[White "Alexikov, Alexander"]
[Black "slow_jamz"]
[WhiteFideId "14103958"]
[WhiteElo "2186"]
[BlackElo "2526"]
[Result "0-1"]
[Round "03"]
[TimeControl "180+2"]
[Date "2023.05.16"]
[WhiteClock "0:00:06"]
[BlackClock "0:00:20"]

1. e4 {[%clk 0:03:00]}  e5 {[%clk 0:02:58]} 2. Nf3 {[%clk 0:03:00]}  Nc6 {[%clk 0:02:58]} 3. c3 {[%clk 0:03:00]}  Nf6 {[%clk 0:02:57]} 4. d4 {[%clk 0:02:59]}  Nxe4 {[%clk 0:02:56]} 5. d5 {[%clk 0:02:59]}  Ne7 {[%clk 0:02:57]} 6. Nxe5 {[%clk 0:02:59]}  Ng6 {[%clk 0:02:57]} 7. Qf3 {[%clk 0:02:58]}  Nf6 {[%clk 0:02:45]} 8. Nc4 {[%clk 0:02:52]}  d6 {[%clk 0:02:40]} 9. h3 {[%clk 0:02:49]}  Be7 {[%clk 0:02:40]} 10. g3 {[%clk 0:02:48]}  O-O {[%clk 0:02:40]} 11. Bg2 {[%clk 0:02:47]}  b6 {[%clk 0:02:32]} 12. O-O {[%clk 0:02:38]}  Ba6 {[%clk 0:02:20]} 13. Nba3 {[%clk 0:02:35]}  Ne5 {[%clk 0:02:02]} 14. Nxe5 {[%clk 0:02:31]}  Bxf1 {[%clk 0:02:02]} 15. Kxf1 {[%clk 0:02:19]}  dxe5 {[%clk 0:02:02]} 16. Nc4 {[%clk 0:02:14]}  e4 {[%clk 0:01:59]} 17. Qd1 {[%clk 0:02:02]}  Re8 {[%clk 0:01:47]} 18. Ne3 {[%clk 0:01:49]}  Bc5 {[%clk 0:01:44]} 19. c4 {[%clk 0:01:48]}  Qd7 {[%clk 0:01:31]} 20. g4 {[%clk 0:01:41]}  g6 {[%clk 0:01:17]} 21. b3 {[%clk 0:01:26]}  Bf8 {[%clk 0:01:10]} 22. Bb2 {[%clk 0:01:24]}  Bg7 {[%clk 0:01:07]} 23. g5 {[%clk 0:01:19]}  Nh5 {[%clk 0:01:07]} 24. Bxg7 {[%clk 0:01:17]}  Nxg7 {[%clk 0:01:04]} 25. Ng4 {[%clk 0:01:16]}  Nh5 {[%clk 0:01:00]} 26. Qd4 {[%clk 0:01:11]}  f6 {[%clk 0:00:57]} 27. gxf6 {[%clk 0:01:08]}  Qd6 {[%clk 0:00:27]} 28. Re1 {[%clk 0:00:46]}  Kf8 {[%clk 0:00:26]} 29. Kg1 {[%clk 0:00:38]}  Rad8 {[%clk 0:00:23]} 30. Rxe4 {[%clk 0:00:36]}  Rxe4 {[%clk 0:00:23]} 31. Bxe4 {[%clk 0:00:34]}  Re8 {[%clk 0:00:23]} 32. Bf3 {[%clk 0:00:26]}  Re1+ {[%clk 0:00:20]} 33. Kg2 {[%clk 0:00:22]}  Nf4+ {[%clk 0:00:20]} 34. Kh2 {[%clk 0:00:21]}  Ne6+ {[%clk 0:00:19]} 35. Qe5 {[%clk 0:00:16]}  Rxe5 {[%clk 0:00:19]} 36. Nxe5 {[%clk 0:00:14]}  Qxe5+ {[%clk 0:00:20]} 37. Kg1 {[%clk 0:00:13]}  Nd4 {[%clk 0:00:20]} 38. Bg2 {[%clk 0:00:06]}  Qxf6 {[%clk 0:00:20]} 0-1


[Site "https://www.chess.com"]

[Event "Titled Tuesday Blitz May 16 Late 2023"]
[White "Celestino, Rafael Teixeira"]
[Black "Yedidia, Daniel"]
[WhiteFideId "2108925"]
[BlackFideId "30905907"]
[WhiteElo "2315"]
[BlackElo "2513"]
[Result "1-0"]
[Round "03"]
[TimeControl "180+2"]
[Date "2023.05.16"]
[WhiteClock "0:00:26"]
[BlackClock "0:00:07"]

1. e4 {[%clk 0:03:00]}  e5 {[%clk 0:02:59]} 2. Nf3 {[%clk 0:03:00]}  Nc6 {[%clk 0:02:59]} 3. Bc4 {[%clk 0:03:00]}  Nf6 {[%clk 0:02:59]} 4. Ng5 {[%clk 0:03:00]}  d5 {[%clk 0:02:59]} 5. exd5 {[%clk 0:03:01]}  Na5 {[%clk 0:03:00]} 6. Bb5+ {[%clk 0:03:01]}  c6 {[%clk 0:03:00]} 7. dxc6 {[%clk 0:03:02]}  bxc6 {[%clk 0:03:01]} 8. Qf3 {[%clk 0:03:01]}  Be7 {[%clk 0:03:01]} 9. Ba4 {[%clk 0:03:00]}  O-O {[%clk 0:03:01]} 10. Nc3 {[%clk 0:03:01]}  Bb7 {[%clk 0:02:57]} 11. d3 {[%clk 0:03:00]}  c5 {[%clk 0:02:58]} 12. Qh3 {[%clk 0:02:59]}  h6 {[%clk 0:02:57]} 13. Nge4 {[%clk 0:02:59]}  Nxe4 {[%clk 0:02:55]} 14. dxe4 {[%clk 0:02:51]}  Ba6 {[%clk 0:02:50]} 15. Qg3 {[%clk 0:02:42]}  Kh7 {[%clk 0:02:41]} 16. Nd5 {[%clk 0:02:41]}  Bd6 {[%clk 0:02:34]} 17. Bd2 {[%clk 0:02:38]}  Nc4 {[%clk 0:02:32]} 18. O-O-O {[%clk 0:02:38]}  Nxd2 {[%clk 0:02:21]} 19. Rxd2 {[%clk 0:02:38]}  Qb8 {[%clk 0:02:18]} 20. Ne3 {[%clk 0:02:31]}  Be7 {[%clk 0:02:06]} 21. Nf5 {[%clk 0:02:29]}  Bg5 {[%clk 0:02:06]} 22. Kb1 {[%clk 0:02:25]}  g6 {[%clk 0:02:06]} 23. Rd7 {[%clk 0:02:13]}  gxf5 {[%clk 0:02:01]} 24. h4 {[%clk 0:02:01]}  Bf6 {[%clk 0:01:55]} 25. exf5 {[%clk 0:02:01]}  Kh8 {[%clk 0:01:48]} 26. Qe3 {[%clk 0:01:48]}  Kh7 {[%clk 0:01:41]} 27. g4 {[%clk 0:01:44]}  e4 {[%clk 0:01:35]} 28. c3 {[%clk 0:01:44]}  Bd3+ {[%clk 0:01:34]} 29. Ka1 {[%clk 0:01:28]}  Qe5 {[%clk 0:01:22]} 30. g5 {[%clk 0:01:18]}  Qxf5 {[%clk 0:01:20]} 31. gxf6 {[%clk 0:01:12]}  Rad8 {[%clk 0:01:11]} 32. Rxa7 {[%clk 0:01:01]}  Qxf6 {[%clk 0:01:03]} 33. Qxc5 {[%clk 0:00:59]}  Rg8 {[%clk 0:00:58]} 34. Bb3 {[%clk 0:00:55]}  Rg7 {[%clk 0:00:47]} 35. Re1 {[%clk 0:00:47]}  Rd6 {[%clk 0:00:37]} 36. Ra8 {[%clk 0:00:43]}  Ra6 {[%clk 0:00:27]} 37. Rxa6 {[%clk 0:00:40]}  Bxa6 {[%clk 0:00:28]} 38. c4 {[%clk 0:00:31]}  Bb7 {[%clk 0:00:21]} 39. Bc2 {[%clk 0:00:31]}  Qxh4 {[%clk 0:00:15]} 40. Qf5+ {[%clk 0:00:31]}  Kg8 {[%clk 0:00:14]} 41. Rd1 {[%clk 0:00:31]}  Qg5 {[%clk 0:00:11]} 42. Qd7 {[%clk 0:00:28]}  Ba6 {[%clk 0:00:07]} 43. Qe8+ {[%clk 0:00:26]} 1-0


[Site "https://www.chess.com"]

[Event "Titled Tuesday Blitz May 16 Late 2023"]
[White "Skaric, Djuro"]
[Black "Aggelis, Nikolaos"]
[WhiteFideId "934569"]
[BlackFideId "4213220"]
[WhiteElo "2282"]
[BlackElo "2189"]
[Result "0-1"]
[Round "03"]
[TimeControl "180+2"]
[Date "2023.05.16"]
[WhiteClock "0:00:52"]
[BlackClock "0:00:21"]

1. g3 {[%clk 0:03:00]}  f5 {[%clk 0:02:27]} 2. Bg2 {[%clk 0:02:59]}  Nf6 {[%clk 0:02:25]} 3. d3 {[%clk 0:02:59]}  e6 {[%clk 0:02:20]} 4. Nc3 {[%clk 0:02:58]}  Nc6 {[%clk 0:02:17]} 5. e4 {[%clk 0:02:57]}  d5 {[%clk 0:02:11]} 6. exf5 {[%clk 0:02:44]}  exf5 {[%clk 0:02:06]} 7. Nf3 {[%clk 0:02:44]}  Bb4 {[%clk 0:01:51]} 8. O-O {[%clk 0:02:44]}  O-O {[%clk 0:01:49]} 9. Ne2 {[%clk 0:02:43]}  Bd7 {[%clk 0:01:27]} 10. c3 {[%clk 0:02:43]}  Bd6 {[%clk 0:01:23]} 11. b4 {[%clk 0:02:42]}  Ne5 {[%clk 0:01:13]} 12. Bg5 {[%clk 0:02:31]}  Nf7 {[%clk 0:01:09]} 13. Bf4 {[%clk 0:02:28]}  c6 {[%clk 0:01:06]} 14. Bxd6 {[%clk 0:02:25]}  Nxd6 {[%clk 0:01:07]} 15. Ne5 {[%clk 0:02:25]}  Be8 {[%clk 0:01:05]} 16. Nd4 {[%clk 0:02:25]}  Bh5 {[%clk 0:00:58]} 17. Qd2 {[%clk 0:02:23]}  Re8 {[%clk 0:00:54]} 18. Rfe1 {[%clk 0:02:22]}  Qb6 {[%clk 0:00:51]} 19. a4 {[%clk 0:02:15]}  Re7 {[%clk 0:00:51]} 20. a5 {[%clk 0:02:15]}  Qc7 {[%clk 0:00:51]} 21. h3 {[%clk 0:02:14]}  Rae8 {[%clk 0:00:50]} 22. f4 {[%clk 0:02:14]}  Nf7 {[%clk 0:00:44]} 23. Ndf3 {[%clk 0:02:03]}  Bxf3 {[%clk 0:00:43]} 24. Nxf3 {[%clk 0:02:00]}  a6 {[%clk 0:00:38]} 25. Kh2 {[%clk 0:01:59]}  Nh5 {[%clk 0:00:31]} 26. Rxe7 {[%clk 0:01:57]}  Rxe7 {[%clk 0:00:31]} 27. Re1 {[%clk 0:01:57]}  h6 {[%clk 0:00:27]} 28. Nd4 {[%clk 0:01:53]}  g6 {[%clk 0:00:23]} 29. Rxe7 {[%clk 0:01:44]}  Qxe7 {[%clk 0:00:22]} 30. g4 {[%clk 0:01:44]}  fxg4 {[%clk 0:00:21]} 31. f5 {[%clk 0:01:35]}  Qe5+ {[%clk 0:00:18]} 32. Kg1 {[%clk 0:01:32]}  gxf5 {[%clk 0:00:18]} 33. hxg4 {[%clk 0:01:32]}  fxg4 {[%clk 0:00:18]} 34. Qf2 {[%clk 0:01:29]}  Nf4 {[%clk 0:00:18]} 35. Bf1 {[%clk 0:01:28]}  h5 {[%clk 0:00:19]} 36. Qg3 {[%clk 0:01:22]}  Qg5 {[%clk 0:00:18]} 37. Nf3 {[%clk 0:01:19]}  gxf3 {[%clk 0:00:17]} 38. Qxg5+ {[%clk 0:01:20]}  Nxg5 {[%clk 0:00:18]} 39. Kf2 {[%clk 0:01:20]}  Nfe6 {[%clk 0:00:17]} 40. Ke3 {[%clk 0:01:20]}  Kf7 {[%clk 0:00:17]} 41. c4 {[%clk 0:01:20]}  Kf6 {[%clk 0:00:17]} 42. b5 {[%clk 0:01:19]}  axb5 {[%clk 0:00:16]} 43. cxb5 {[%clk 0:01:19]}  cxb5 {[%clk 0:00:17]} 44. d4 {[%clk 0:01:20]}  b4 {[%clk 0:00:17]} 45. Bd3 {[%clk 0:01:15]}  b3 {[%clk 0:00:18]} 46. Bb1 {[%clk 0:01:13]}  h4 {[%clk 0:00:18]} 47. Kf2 {[%clk 0:01:12]}  h3 {[%clk 0:00:19]} 48. Kg1 {[%clk 0:01:12]}  Nxd4 {[%clk 0:00:19]} 49. Kh2 {[%clk 0:01:11]}  Nc6 {[%clk 0:00:19]} 50. a6 {[%clk 0:01:09]}  bxa6 {[%clk 0:00:19]} 51. Bd3 {[%clk 0:01:10]}  a5 {[%clk 0:00:19]} 52. Bb1 {[%clk 0:01:04]}  b2 {[%clk 0:00:19]} 53. Kg3 {[%clk 0:01:04]}  a4 {[%clk 0:00:19]} 54. Ba2 {[%clk 0:01:03]}  d4 {[%clk 0:00:19]} 55. Bb1 {[%clk 0:01:03]}  Ne5 {[%clk 0:00:20]} 56. Ba2 {[%clk 0:01:03]}  a3 {[%clk 0:00:21]} 57. Bb1 {[%clk 0:00:52]}  d3 {[%clk 0:00:21]} 0-1


[Site "https://www.chess.com"]

[Event "Titled Tuesday Blitz May 16 Late 2023"]
[White "Ilkhomi, Jaloliddin"]
[Black "Einarsson, Halldor Gretar"]
[WhiteFideId "14700948"]
[BlackFideId "2300150"]
[WhiteElo "2045"]
[BlackElo "2110"]
[Result "1-0"]
[Round "03"]
[TimeControl "180+2"]
[Date "2023.05.16"]
[WhiteClock "0:02:36"]
[BlackClock "0:00:08"]

1. Nf3 {[%clk 0:03:00]}  Nf6 {[%clk 0:02:58]} 2. d4 {[%clk 0:03:00]}  g6 {[%clk 0:02:58]} 3. c4 {[%clk 0:03:00]}  Bg7 {[%clk 0:02:57]} 4. Nc3 {[%clk 0:03:01]}  d5 {[%clk 0:02:57]} 5. e3 {[%clk 0:02:56]}  O-O {[%clk 0:02:55]} 6. cxd5 {[%clk 0:02:56]}  Nxd5 {[%clk 0:02:54]} 7. Bc4 {[%clk 0:02:57]}  Be6 {[%clk 0:02:49]} 8. Qb3 {[%clk 0:02:53]}  c6 {[%clk 0:01:56]} 9. Qxb7 {[%clk 0:02:47]}  Qd7 {[%clk 0:01:38]} 10. Qxd7 {[%clk 0:02:45]}  Nxd7 {[%clk 0:01:36]} 11. Nxd5 {[%clk 0:02:44]}  cxd5 {[%clk 0:01:29]} 12. Bd3 {[%clk 0:02:44]}  Rab8 {[%clk 0:01:17]} 13. b3 {[%clk 0:02:44]}  Nc5 {[%clk 0:01:16]} 14. Bc2 {[%clk 0:02:39]}  Rfc8 {[%clk 0:01:11]} 15. Ba3 {[%clk 0:02:39]}  Na4 {[%clk 0:00:28]} 16. Kd2 {[%clk 0:02:38]}  Nb6 {[%clk 0:00:21]} 17. Rhc1 {[%clk 0:02:38]}  Kf8 {[%clk 0:00:20]} 18. Bd3 {[%clk 0:02:38]}  Bh6 {[%clk 0:00:16]} 19. h4 {[%clk 0:02:38]}  f6 {[%clk 0:00:15]} 20. h5 {[%clk 0:02:38]}  Kf7 {[%clk 0:00:15]} 21. hxg6+ {[%clk 0:02:38]}  hxg6 {[%clk 0:00:15]} 22. Rh1 {[%clk 0:02:39]}  Kg7 {[%clk 0:00:13]} 23. Bxe7 {[%clk 0:02:36]}  Re8 {[%clk 0:00:08]} 24. Bxf6+ {[%clk 0:02:36]} 1-0


[Site "https://www.chess.com"]

[Event "Titled Tuesday Blitz May 16 Late 2023"]
[White "Fajdetic, Hrvoje"]
[Black "Deviprasath, Sharvesh"]
[WhiteFideId "14501945"]
[BlackFideId "30938228"]
[WhiteElo "2185"]
[BlackElo "2168"]
[Result "0-1"]
[Round "03"]
[TimeControl "180+2"]
[Date "2023.05.16"]
[WhiteClock "0:00:00"]
[BlackClock "0:01:54"]

1. d4 {[%clk 0:02:57]}  Nf6 {[%clk 0:02:59]} 2. Bf4 {[%clk 0:02:52]}  g6 {[%clk 0:02:59]} 3. Nc3 {[%clk 0:02:52]}  Bg7 {[%clk 0:02:59]} 4. e4 {[%clk 0:02:51]}  d6 {[%clk 0:02:59]} 5. Qd2 {[%clk 0:02:50]}  O-O {[%clk 0:02:57]} 6. O-O-O {[%clk 0:02:50]}  Nbd7 {[%clk 0:02:55]} 7. Bh6 {[%clk 0:02:49]}  c5 {[%clk 0:02:54]} 8. Bxg7 {[%clk 0:02:35]}  Kxg7 {[%clk 0:02:51]} 9. e5 {[%clk 0:02:35]}  Ne8 {[%clk 0:02:48]} 10. exd6 {[%clk 0:02:00]}  exd6 {[%clk 0:02:46]} 11. h4 {[%clk 0:01:43]}  h5 {[%clk 0:02:42]} 12. dxc5 {[%clk 0:01:13]}  Nxc5 {[%clk 0:02:38]} 13. Nd5 {[%clk 0:01:04]}  Be6 {[%clk 0:02:33]} 14. Nf3 {[%clk 0:00:51]}  Bxd5 {[%clk 0:02:29]} 15. Qxd5 {[%clk 0:00:50]}  Nf6 {[%clk 0:02:30]} 16. Qd4 {[%clk 0:00:31]}  Ne6 {[%clk 0:02:28]} 17. Qxd6 {[%clk 0:00:17]}  Qxd6 {[%clk 0:02:27]} 18. Rxd6 {[%clk 0:00:18]}  Ne4 {[%clk 0:02:28]} 19. Rd7 {[%clk 0:00:18]}  Nxf2 {[%clk 0:02:23]} 20. Rg1 {[%clk 0:00:18]}  Rfd8 {[%clk 0:02:24]} 21. Rxd8 {[%clk 0:00:15]}  Rxd8 {[%clk 0:02:25]} 22. Bc4 {[%clk 0:00:14]}  Nf4 {[%clk 0:02:17]} 23. g3 {[%clk 0:00:12]}  Rc8 {[%clk 0:02:13]} 24. b3 {[%clk 0:00:10]}  Rxc4 {[%clk 0:02:09]} 25. gxf4 {[%clk 0:00:09]}  Rxf4 {[%clk 0:02:08]} 26. Ng5 {[%clk 0:00:07]}  Rxh4 {[%clk 0:02:02]} 27. Re1 {[%clk 0:00:07]}  Rg4 {[%clk 0:01:59]} 28. Re2 {[%clk 0:00:07]}  Rxg5 {[%clk 0:01:56]} 29. Rxf2 {[%clk 0:00:06]}  h4 {[%clk 0:01:56]} 30. Kd2 {[%clk 0:00:06]}  h3 {[%clk 0:01:56]} 31. Ke3 {[%clk 0:00:05]}  Rg2 {[%clk 0:01:55]} 32. Rf3 {[%clk 0:00:04]}  h2 {[%clk 0:01:53]} 33. Rh3 {[%clk 0:00:04]}  Rxc2 {[%clk 0:01:54]} 34. a4 {[%clk 0:00:00]}  Rc3+ {[%clk 0:01:54]} 0-1


[Site "https://www.chess.com"]

[Event "Titled Tuesday Blitz May 16 Late 2023"]
[White "Estrada Nieto, Julian"]
[Black "Rose, Felix"]
[WhiteFideId "5101018"]
[BlackFideId "5105722"]
[WhiteElo "2161"]
[BlackElo "2039"]
[Result "1/2-1/2"]
[Round "03"]
[TimeControl "180+2"]
[Date "2023.05.16"]
[WhiteClock "0:00:28"]
[BlackClock "0:00:18"]

1. e4 {[%clk 0:03:00]}  d6 {[%clk 0:02:58]} 2. d4 {[%clk 0:03:00]}  Nf6 {[%clk 0:02:58]} 3. Nc3 {[%clk 0:03:00]}  g6 {[%clk 0:02:59]} 4. Nf3 {[%clk 0:03:00]}  Bg7 {[%clk 0:02:59]} 5. Be2 {[%clk 0:03:01]}  O-O {[%clk 0:02:59]} 6. O-O {[%clk 0:03:02]}  c6 {[%clk 0:02:59]} 7. a4 {[%clk 0:03:01]}  Nbd7 {[%clk 0:02:59]} 8. Be3 {[%clk 0:03:00]}  Qc7 {[%clk 0:03:00]} 9. a5 {[%clk 0:02:59]}  e5 {[%clk 0:02:58]} 10. dxe5 {[%clk 0:02:53]}  Nxe5 {[%clk 0:02:54]} 11. Nxe5 {[%clk 0:02:51]}  dxe5 {[%clk 0:02:55]} 12. f3 {[%clk 0:02:49]}  Rd8 {[%clk 0:02:53]} 13. Qe1 {[%clk 0:02:48]}  Be6 {[%clk 0:02:53]} 14. Qf2 {[%clk 0:02:44]}  Re8 {[%clk 0:02:12]} 15. Bxa7 {[%clk 0:02:24]}  Nd7 {[%clk 0:02:04]} 16. Be3 {[%clk 0:02:23]}  Rxa5 {[%clk 0:02:00]} 17. Bb6 {[%clk 0:02:15]}  Nxb6 {[%clk 0:01:39]} 18. Rxa5 {[%clk 0:02:15]}  Nc4 {[%clk 0:01:35]} 19. Ra2 {[%clk 0:02:06]}  Nd2 {[%clk 0:01:28]} 20. Rd1 {[%clk 0:01:51]}  Bxa2 {[%clk 0:01:20]} 21. Nxa2 {[%clk 0:01:46]}  Qa5 {[%clk 0:01:12]} 22. Nc3 {[%clk 0:01:37]}  Bf8 {[%clk 0:01:09]} 23. Kh1 {[%clk 0:01:24]}  Bc5 {[%clk 0:01:05]} 24. Qe1 {[%clk 0:01:24]}  Be3 {[%clk 0:00:59]} 25. Rxd2 {[%clk 0:01:23]}  Bxd2 {[%clk 0:00:58]} 26. Qxd2 {[%clk 0:01:23]}  Rd8 {[%clk 0:00:47]} 27. Bd3 {[%clk 0:01:18]}  Qa1+ {[%clk 0:00:45]} 28. Nd1 {[%clk 0:01:17]}  c5 {[%clk 0:00:44]} 29. b3 {[%clk 0:00:58]}  b5 {[%clk 0:00:44]} 30. c4 {[%clk 0:00:48]}  bxc4 {[%clk 0:00:30]} 31. bxc4 {[%clk 0:00:47]}  Qa3 {[%clk 0:00:21]} 32. Nb2 {[%clk 0:00:35]}  Qa1+ {[%clk 0:00:18]} 33. Nd1 {[%clk 0:00:34]}  Qa3 {[%clk 0:00:18]} 34. Nb2 {[%clk 0:00:32]}  Qa1+ {[%clk 0:00:18]} 35. Nd1 {[%clk 0:00:28]} 1/2-1/2


[Site "https://www.chess.com"]